bitfinex/quotes_SOLUSD_20240902
["timestamp","ask_amount","ask_price","bid_price","bid_amount"]
[1725266367565,39.82105991,130.43,130.37,7.6704]
[1725266368073,47.48925991,130.41,130.35,0.8472365]
[1725266368264,45.0,130.4,130.35,20.8472365]
[1725266368454,45.0,130.4,130.35,0.8472365]
[1725266369547,39.82105991,130.37,130.35,0.8472365]
[1725266369776,7.67,130.38,130.35,0.8472365]
[1725266369947,53.81385991,130.39,130.35,0.8472365]
[1725266370152,45.0,130.38,130.35,0.8472365]
[1725266370370,13.7438,130.42,130.35,0.8472365]
[1725266370679,45.0,130.41,130.35,0.8472365]
[1725266370847,84.82105991,130.41,130.35,0.8472365]
[1725266371051,92.48915991,130.41,130.35,0.8472365]
[1725266371583,6.0762,130.42,130.35,8.5186365]
[1725266372075,39.82105991,130.41,130.35,8.5186365]
[1725266372550,47.48795991,130.44,130.35,8.5186365]
[1725266372751,39.82105991,130.44,130.36,20.0]
[1725266372956,45.99645991,130.49,130.38,34.63552275]
[1725266373178,45.99645991,130.49,130.42,7.6674]
[1725266373352,45.99645991,130.49,130.4,19.1705]
[1725266373672,45.99645991,130.49,130.42,7.6674]
[1725266373877,45.99645991,130.49,130.41,20.0]
[1725266373878,45.99645991,130.49,130.4,19.1705]
[1725266374054,80.63198266,130.49,130.41,20.0]
[1725266374560,7.6642,130.48,130.41,20.0]
[1725266374773,39.82105991,130.47,130.41,20.0]
[1725266374970,7.6642,130.48,130.41,20.0]
[1725266375664,80.63198266,130.49,130.41,20.0]
[1725266375665,80.63198266,130.49,130.41,27.668]
[1725266375865,45.0,130.48,130.41,27.668]
[1725266376180,52.6641,130.48,130.41,20.0]
[1725266376774,45.0,130.48,130.41,27.668]
[1725266377155,45.0,130.48,130.42,7.6674]
[1725266377671,15.7493,130.5,130.43,7.6664]
[1725266377872,39.82105991,130.49,130.42,26.835]
[1725266379178,45.0,130.48,130.42,26.835]
[1725266380181,39.82105991,130.47,130.41,20.0]
[1725266380353,52.6641,130.48,130.4,20.0]
[1725266380553,52.6641,130.48,130.4,27.6681]
[1725266380973,45.0,130.48,130.4,20.0]
[1725266381272,23.4121,130.5,130.42,7.667]
[1725266381468,45.0,130.49,130.42,7.667]
[1725266382479,39.82105991,130.48,130.41,26.8371]
[1725266382783,45.0,130.47,130.41,26.8371]
[1725266383273,45.0,130.47,130.41,19.1691]
[1725266384081,47.48625991,130.46,130.38,19.1745]
[1725266384384,45.0,130.45,130.39,27.6691]
[1725266384584,87.30012275,130.47,130.39,27.6691]
[1725266384783,47.48635991,130.46,130.38,26.8442]
[1725266384987,45.0,130.45,130.38,26.8442]
[1725266385285,74.45658266,130.49,130.38,19.1745]
[1725266385459,74.45658266,130.49,130.39,45.0]
[1725266386255,7.6641,130.48,130.41,7.6681]
[1725266386457,47.48565991,130.47,130.39,7.6692]
[1725266386658,7.6646,130.47,130.39,7.6692]
[1725266387278,7.6653,130.46,130.39,7.6692]
[1725266388564,7.6658,130.45,130.38,26.8443]
[1725266388772,92.48685991,130.45,130.38,26.8443]
[1725266388973,92.48685991,130.45,130.36,7.6709]
[1725266388974,7.6664,130.44,130.36,7.6709]
[1725266389167,84.82105991,130.43,130.35,27.6976365]
[1725266390068,52.6669,130.43,130.36,7.671]
[1725266390261,23.4561,130.44,130.35,20.0261365]
[1725266390567,22.7315,130.48,130.36,54.63552275]
[1725266390959,22.7315,130.48,130.4,7.6686]
[1725266392169,45.0,130.47,130.4,7.6686]
[1725266393395,52.6646,130.47,130.4,7.6686]
[1725266395375,39.82105991,130.45,130.36,20.0]
[1725266395684,7.6669,130.43,130.35,20.0252365]
[1725266396094,35.43489885,130.43,130.36,7.671]
[1725266396581,7.6669,130.43,130.36,7.671]
[1725266397574,70.98973194,130.45,130.35,20.0252365]
[1725266397575,7.6664,130.44,130.37,7.6704]
[1725266399008,22.7314,130.48,130.41,7.6679]
[1725266399166,15.067,130.48,130.39,34.69721293]
[1725266399366,15.067,130.48,130.42,7.6674]
[1725266399567,15.067,130.48,130.41,7.668]
[1725266399782,7.6647,130.47,130.42,20.0]
[1725266399983,15.067,130.48,130.42,7.6674]
[1725266400476,15.067,130.48,130.44,7.6662]
[1725266400681,6.2552,130.5,130.43,19.1672]
[1725266400879,15.6163,130.51,130.44,7.6663]
[1725266401576,15.6163,130.51,130.43,19.1672]
[1725266401577,7.6611,130.53,130.46,7.6651]
[1725266401786,39.82105991,130.54,130.48,7.6634]
[1725266401966,16.4043,130.55,130.49,7.6633]
[1725266402168,16.4043,130.55,130.47,13.815]
[1725266402169,24.0642,130.55,130.47,13.815]
[1725266402368,47.48165991,130.54,130.47,6.151]
[1725266402615,47.48165991,130.54,130.46,26.8277]
[1725266403101,16.4043,130.55,130.49,19.1584]
[1725266403303,30.299,130.59,130.5,0.76051871]
[1725266403590,22.6415,130.59,130.55,7.6597]
[1725266403796,16.4043,130.59,130.56,0.76770249]
[1725266404165,16.4043,130.59,130.54,0.76955437]
[1725266405115,63.88285991,130.59,130.52,26.8151]
[1725266405303,63.88285991,130.59,130.52,19.1535]
[1725266405475,7.6582,130.58,130.48,19.1589]
[1725266405673,7.6582,130.58,130.49,65.0]
[1725266406078,42.35541293,130.58,130.5,7.6626]
[1725266406288,45.0,130.57,130.5,7.6626]
[1725266406491,24.0619,130.59,130.49,20.0]
[1725266406706,63.88295991,130.59,130.49,20.0]
[1725266406884,24.0619,130.59,130.49,20.0]
[1725266407076,16.4043,130.59,130.52,7.6613]
[1725266407274,56.22535991,130.59,130.52,7.6613]
[1725266407505,56.22535991,130.59,130.51,19.155]
[1725266407688,45.0,130.58,130.51,19.155]
[1725266408091,52.6581,130.58,130.51,19.155]
[1725266408497,7.6589,130.57,130.49,27.6633]
[1725266408799,7.6589,130.57,130.48,19.1599]
[1725266408800,7.6593,130.56,130.48,19.1599]
[1725266409179,7.6587,130.57,130.49,7.6633]
[1725266409508,7.6587,130.57,130.5,7.6625]
[1725266410400,7.6587,130.57,130.49,7.6633]
[1725266410786,7.6587,130.57,130.5,7.6627]
[1725266411107,42.35561293,130.58,130.51,7.6621]
[1725266411785,7.6584,130.58,130.51,7.6621]
[1725266412519,7.6584,130.58,130.5,7.6627]
[1725266412802,24.0618,130.59,130.51,19.1554]
[1725266414309,24.0618,130.59,130.52,7.6615]
[1725266415721,24.0618,130.59,130.51,19.1554]
[1725266415722,7.6581,130.58,130.51,26.8175]
[1725266416629,24.0619,130.59,130.52,7.6614]
[1725266416930,7.6581,130.58,130.52,7.6614]
[1725266417133,7.6581,130.58,130.51,19.1554]
[1725266417432,7.6581,130.58,130.51,26.8173]
[1725266419024,7.6581,130.58,130.52,7.6616]
[1725266419700,7.6581,130.58,130.47,79.59721293]
[1725266419701,7.661,130.54,130.48,19.1597]
[1725266420143,7.661,130.53,130.47,7.6645]
[1725266420332,15.214,130.52,130.45,19.1638]
[1725266420735,7.6625,130.51,130.45,19.1638]
[1725266421035,22.8757,130.52,130.45,26.8291]
[1725266421337,7.6628,130.5,130.42,19.1683]
[1725266421538,34.69721293,130.5,130.42,19.1683]
[1725266421841,45.84425991,130.51,130.39,19.1731]
[1725266421842,34.69721293,130.48,130.39,19.1731]
[1725266422042,6.0232,130.51,130.41,34.69721293]
[1725266422348,6.0232,130.51,130.45,7.6652]
[1725266422935,15.214,130.52,130.41,34.69721293]
[1725266422936,15.214,130.52,130.43,34.69721293]
[1725266423240,15.214,130.52,130.47,19.1612]
[1725266423412,6.3258,130.54,130.48,20.0]
[1725266423618,23.8575,130.56,130.5,7.6628]
[1725266423619,16.1982,130.56,130.5,7.6628]
[1725266423813,16.1982,130.56,130.48,20.0]
[1725266423814,16.1982,130.56,130.51,7.662]
[1725266424049,16.1982,130.56,130.49,19.1572]
[1725266424050,16.1982,130.56,130.52,7.6614]
[1725266425938,16.1982,130.56,130.49,64.1572]
[1725266426141,50.89541293,130.56,130.49,19.1572]
[1725266426439,58.55521293,130.56,130.49,19.1572]
[1725266426611,58.55521293,130.56,130.49,26.8204]
[1725266427609,16.1982,130.56,130.5,45.0]
[1725266429240,16.1982,130.56,130.51,7.6621]
[1725266429448,16.1982,130.56,130.52,19.1539]
[1725266431235,16.1982,130.56,130.53,7.6609]
[1725266431441,16.1982,130.56,130.54,7.6604]
[1725266431638,22.2184,130.6,130.54,19.1498]
[1725266431936,16.0222,130.6,130.58,7.6578]
[1725266432141,16.0222,130.6,130.56,19.1471]
[1725266432353,16.0222,130.6,130.53,34.69721293]
[1725266432354,7.6575,130.59,130.53,26.8128]
[1725266432551,16.0222,130.6,130.54,27.6603]
[1725266432759,16.0222,130.6,130.57,7.6586]
[1725266434753,21.3745,130.64,130.59,7.6574]
[1725266435540,21.3745,130.64,130.6,7.6568]
[1725266436462,21.3745,130.64,130.58,7.658]
[1725266437357,21.3745,130.64,130.59,7.6574]
[1725266437857,15.1783,130.64,130.61,7.6562]
[1725266438729,15.1783,130.64,130.63,7.6552]
[1725266438935,21.7522,130.68,130.63,7.6552]
[1725266439436,7.6538,130.66,130.6,7.6569]
[1725266439742,38.246,130.74,130.57,19.1455]
[1725266439743,23.0906,130.72,130.65,7.6539]
[1725266439946,15.4402,130.72,130.66,20.0]
[1725266440265,15.4402,130.72,130.68,7.652]
[1725266440562,15.4402,130.72,130.67,7.6527]
[1725266441340,15.4402,130.72,130.68,7.652]
[1725266442032,15.4402,130.72,130.69,7.6516]
[1725266443456,7.6476,130.76,130.69,7.6516]
[1725266443658,7.6476,130.76,130.75,7.6481]
[1725266443659,16.0363,130.76,130.75,7.6481]
[1725266443836,23.1513365,130.8,130.75,7.6481]
[1725266444035,23.1513365,130.8,130.76,7.6475]
[1725266444235,22.6513365,130.8,130.76,7.6475]
[1725266444859,22.6513365,130.8,130.74,19.1205]
[1725266445055,22.6513365,130.8,130.75,7.6481]
[1725266447363,22.6513365,130.8,130.76,7.6475]
[1725266447682,16.3835365,130.8,130.76,19.1177]
[1725266448172,0.3472365,130.8,130.79,7.6458]
[1725266449263,0.3472365,130.8,130.79,27.6458]
[1725266449464,0.3472365,130.8,130.79,72.6458]
[1725266450163,0.3472365,130.8,130.79,110.875]
[1725266450543,0.3472365,130.8,130.79,72.6458]
[1725266450848,0.3472365,130.8,130.79,20.0]
[1725266451061,0.3472365,130.8,130.78,26.7611]
[1725266451475,0.3472365,130.8,130.75,19.1201]
[1725266451771,16.368,130.78,130.67,34.69721293]
[1725266451973,16.368,130.78,130.72,7.6497]
[1725266452353,16.368,130.78,130.75,19.1201]
[1725266452662,16.368,130.78,130.76,7.6475]
[1725266452869,0.3472365,130.8,130.77,7.6468]
[1725266453170,0.3472365,130.8,130.78,1.52687179]
[1725266453373,0.3472365,130.8,130.78,7.6463]
[1725266453577,0.3472365,130.8,130.75,19.1201]
[1725266453876,0.3472365,130.8,130.76,65.0]
[1725266455075,0.3472365,130.8,130.78,7.6462]
[1725266456455,0.3472365,130.8,130.76,27.647]
[1725266457955,0.3472365,130.8,130.76,20.0]
[1725266458280,0.3472365,130.8,130.77,64.1163]
[1725266458579,0.3472365,130.8,130.79,7.6458]
[1725266459378,0.3472365,130.8,130.79,27.6458]
[1725266459683,0.3472365,130.8,130.79,72.6458]
[1725266460356,0.3472365,130.8,130.79,27.6458]
[1725266462364,0.3472365,130.8,130.79,72.6458]
[1725266464171,0.3472365,130.8,130.79,27.6458]
[1725266465201,0.3472365,130.8,130.74,19.1214]
[1725266465397,15.6356,130.79,130.76,7.647]
[1725266466393,15.6356,130.79,130.74,19.1214]
[1725266466596,15.6356,130.79,130.7,34.69721293]
[1725266467069,15.6356,130.79,130.76,7.6474]
[1725266467268,15.6356,130.79,130.76,7.6473]
[1725266467509,15.6356,130.79,130.75,19.1193]
[1725266467668,15.6356,130.79,130.76,20.0]
[1725266468066,15.6356,130.79,130.76,27.6473]
[1725266470066,15.6356,130.79,130.76,20.0]
[1725266470270,15.6356,130.79,130.76,7.647]
[1725266470889,6.7320365,130.8,130.79,7.6458]
[1725266470890,0.3472365,130.8,130.79,7.6458]
[1725266471081,0.3472365,130.8,130.79,27.6458]
[1725266472092,0.3472365,130.8,130.78,7.6463]
[1725266472590,0.3472365,130.8,130.73,19.1229]
[1725266473285,0.3472365,130.8,130.75,7.6479]
[1725266473593,7.9924365,130.8,130.73,26.7721]
[1725266473997,7.9924365,130.8,130.74,7.6485]
[1725266474201,0.3472365,130.8,130.75,7.6478]
[1725266474974,0.3472365,130.8,130.73,26.7722]
[1725266475298,7.9925365,130.8,130.73,26.7722]
[1725266475874,47.81359641,130.8,130.73,26.7722]
[1725266476096,21.0998,130.79,130.73,19.1229]
[1725266476396,21.0998,130.79,130.71,7.6505]
[1725266476606,7.6471,130.77,130.71,7.6505]
[1725266477789,28.746,130.79,130.72,7.6497]
[1725266477988,21.0998,130.79,130.71,19.1251]
[1725266478378,28.7457,130.79,130.73,7.6493]
[1725266478713,28.7457,130.79,130.72,27.6498]
[1725266479007,7.6464,130.78,130.72,7.6498]
[1725266479301,40.16829641,130.8,130.67,38.2617]
[1725266479302,7.6492,130.74,130.68,19.1305]
[1725266479479,15.6374,130.73,130.68,19.1305]
[1725266480085,23.2867,130.73,130.68,19.1305]
[1725266480707,15.6374,130.73,130.68,19.1305]
[1725266481604,7.65,130.72,130.65,19.1347]
[1725266481789,15.6374,130.73,130.62,19.139]
[1725266481790,7.6523,130.68,130.62,19.139]
[1725266481981,7.6523,130.68,130.62,26.7947]
[1725266482390,16.1383,130.7,130.64,7.654]
[1725266483189,16.1383,130.7,130.63,7.6551]
[1725266483190,23.7896,130.7,130.63,7.6551]
[1725266483499,16.1383,130.7,130.63,7.6551]
[1725266483883,16.1383,130.7,130.64,19.1352]
[1725266484279,16.1383,130.7,130.64,26.7892]
[1725266484699,16.1383,130.7,130.65,7.654]
[1725266485086,16.1383,130.7,130.64,19.1352]
[1725266485087,16.1383,130.7,130.64,26.7897]
[1725266485288,23.7896,130.7,130.64,26.7897]
[1725266485895,7.6523,130.68,130.62,7.6554]
[1725266486605,7.6535,130.66,130.6,26.798]
[1725266486779,21.6957,130.65,130.6,26.798]
[1725266486982,21.6957,130.65,130.61,7.6561]
[1725266488411,21.6957,130.65,130.6,26.7983]
[1725266488706,21.6957,130.65,130.61,7.6561]
[1725266491506,21.6957,130.65,130.6,26.7982]
[1725266491894,21.6957,130.65,130.61,7.6561]
[1725266492723,21.6957,130.65,130.57,72.99001293]
[1725266492724,15.4182,130.71,130.59,6.5496]
[1725266492908,15.4182,130.71,130.66,19.1335]
[1725266493110,15.4182,130.71,130.66,26.7864]
[1725266493917,15.4182,130.71,130.67,7.6526]
[1725266496293,34.69721293,130.76,130.72,7.6499]
[1725266496294,16.3102,130.75,130.72,7.6499]
[1725266497436,16.3102,130.75,130.71,19.1248]
[1725266498809,16.3102,130.75,130.72,7.6493]
[1725266499031,16.3102,130.75,130.71,26.7752]
[1725266499809,16.3102,130.75,130.72,7.6497]
[1725266500423,16.3102,130.75,130.73,7.6491]
[1725266500630,16.3102,130.75,130.74,7.6487]
[1725266502519,16.3102,130.75,130.72,7.6493]
[1725266502722,16.3102,130.75,130.71,26.7752]
[1725266503436,63.77945991,130.75,130.68,7.6517]
[1725266504127,7.6488,130.74,130.68,7.6517]
[1725266504819,7.6488,130.74,130.62,6.2993]
[1725266504820,6.6386,130.71,130.64,19.1362]
[1725266505341,14.2896,130.71,130.65,7.6534]
[1725266505725,7.6511,130.7,130.64,26.7907]
[1725266505924,6.6386,130.71,130.64,19.1362]
[1725266506443,24.1729,130.68,130.62,7.6557]
[1725266506823,6.1485,130.67,130.62,7.6557]
[1725266507431,7.6534,130.66,130.61,19.1405]
[1725266508119,53.62245991,130.67,130.61,19.1405]
[1725266508923,13.8014,130.67,130.61,26.7964]
[1725266509547,6.1485,130.67,130.62,7.6557]
[1725266510047,6.1485,130.67,130.63,19.1368]
[1725266511645,6.1485,130.67,130.66,7.6534]
[1725266511853,16.5205,130.68,130.67,7.6528]
[1725266512838,6.3684,130.7,130.68,7.6519]
[1725266514052,6.3684,130.7,130.67,7.6528]
[1725266514253,6.3684,130.7,130.68,7.6517]
[1725266514829,6.3684,130.7,130.69,7.6516]
[1725266515059,16.6277,130.71,130.7,26.7788]
[1725266515233,6.6472,130.73,130.7,19.1277]
[1725266515434,6.6472,130.73,130.7,26.7788]
[1725266516544,6.6472,130.73,130.66,53.82941293]
[1725266516852,6.6472,130.73,130.67,65.0]
[1725266517252,6.6472,130.73,130.7,7.6505]
[1725266518543,15.5621,130.74,130.7,7.6505]
[1725266518855,15.5621,130.74,130.68,34.69721293]
[1725266519069,15.5621,130.74,130.73,7.6493]
[1725266519356,15.1617,130.78,130.74,19.1204]
[1725266519549,15.1617,130.78,130.76,7.6473]
[1725266519933,15.1617,130.78,130.75,7.6481]
[1725266520341,15.1617,130.78,130.74,19.1204]
[1725266521233,15.1617,130.78,130.72,7.6494]
[1725266521657,15.1617,130.78,130.71,19.1262]
[1725266521658,15.1617,130.78,130.73,7.6492]
[1725266522436,15.1617,130.78,130.73,19.122]
[1725266522665,15.1617,130.78,130.74,20.0]
[1725266523152,15.1617,130.78,130.73,19.122]
[1725266523364,15.1617,130.78,130.74,20.0]
[1725266524245,15.1617,130.78,130.74,27.6486]
[1725266524665,15.1617,130.78,130.73,26.7712]
[1725266527264,14.6617,130.78,130.73,26.7712]
[1725266527862,22.3083,130.78,130.73,19.122]
[1725266528161,22.3083,130.78,130.64,6.6408]
[1725266528162,7.6487,130.75,130.7,19.1273]
[1725266529044,45.0,130.77,130.7,19.1273]
[1725266529748,14.6617,130.78,130.71,7.6504]
[1725266529934,14.6617,130.78,130.7,19.1273]
[1725266530444,22.3084,130.78,130.71,7.6505]
[1725266530859,22.3084,130.78,130.77,7.647]
[1725266530860,14.6617,130.78,130.77,7.647]
[1725266531059,14.6617,130.78,130.76,19.1189]
[1725266531232,14.6617,130.78,130.76,26.7663]
[1725266531431,14.6617,130.78,130.76,19.1189]
[1725266531734,14.6617,130.78,130.73,26.7725]
[1725266532056,34.69721293,130.77,130.67,19.1317]
[1725266532865,34.69721293,130.77,130.68,0.83828233]
[1725266533264,14.6617,130.78,130.69,34.69721293]
[1725266533439,14.6617,130.78,130.74,26.7705]
[1725266533645,14.6617,130.78,130.74,19.1218]
[1725266534243,0.3472365,130.8,130.79,7.6458]
[1725266534857,0.3472365,130.8,130.78,7.6464]
[1725266535673,0.3472365,130.8,130.73,34.69721293]
[1725266535674,6.1004,130.79,130.74,7.6482]
[1725266535844,16.032,130.78,130.74,7.6482]
[1725266536045,16.032,130.78,130.73,26.7722]
[1725266536461,16.032,130.78,130.7,19.1275]
[1725266536655,7.6492,130.74,130.68,1.1283331]
[1725266536868,7.6481,130.76,130.68,7.6517]
[1725266537049,7.6493,130.74,130.69,1.12807413]
[1725266537445,119.51827284,130.77,130.69,1.12807413]
[1725266537446,7.6481,130.76,130.69,1.12807413]
[1725266537641,7.6481,130.76,130.69,8.77947413]
[1725266537962,7.6481,130.76,130.7,7.6508]
[1725266538148,7.6481,130.76,130.71,1.12790152]
[1725266538859,23.6789,130.78,130.71,8.77820152]
[1725266539048,16.032,130.78,130.73,7.6493]
[1725266539583,7.6482,130.75,130.71,1.12790152]
[1725266539749,7.6482,130.75,130.64,6.5611]
[1725266539750,55.85305991,130.78,130.65,34.69721293]
[1725266540075,74.51827284,130.77,130.66,20.0]
[1725266540250,7.6493,130.73,130.66,19.1335]
[1725266541370,7.6505,130.71,130.66,19.1335]
[1725266541569,6.07,130.7,130.62,19.138]
[1725266541745,7.6522,130.69,130.62,26.7933]
[1725266542547,7.6523,130.68,130.62,26.7933]
[1725266543070,7.6523,130.68,130.63,1.52929528]
[1725266543266,7.6523,130.68,130.62,26.7933]
[1725266543267,13.7216,130.7,130.62,19.138]
[1725266543464,6.07,130.7,130.65,7.6538]
[1725266543776,6.07,130.7,130.65,19.1346]
[1725266544354,6.07,130.7,130.65,26.7881]
[1725266545671,15.3154,130.72,130.63,34.69721293]
[1725266545847,15.3154,130.72,130.71,7.6505]
[1725266546051,15.3154,130.72,130.7,19.1264]
[1725266547472,15.3154,130.72,130.71,7.6505]
[1725266547780,15.3154,130.72,130.71,9.18038609]
[1725266548563,15.3154,130.72,130.7,26.7774]
[1725266548877,15.3154,130.72,130.7,19.1264]
[1725266549673,15.3154,130.72,130.68,7.6521]
[1725266550066,22.9653,130.72,130.67,19.1319]
[1725266550576,15.3154,130.72,130.67,26.7847]
[1725266552281,15.3154,130.72,130.68,7.6521]
[1725266552980,15.1109,130.74,130.69,19.1279]
[1725266553664,15.1109,130.74,130.69,26.7795]
[1725266553863,15.1109,130.74,130.66,19.1334]
[1725266554187,7.6509,130.71,130.66,19.1334]
[1725266554495,6.1664,130.69,130.62,19.1381]
[1725266554658,22.9049,130.68,130.62,19.1381]
[1725266554977,15.2526,130.68,130.63,7.6549]
[1725266555477,15.2526,130.68,130.64,7.6546]
[1725266555658,15.2526,130.68,130.65,7.654]
[1725266555859,15.2526,130.68,130.64,7.6545]
[1725266556579,7.6528,130.67,130.62,19.1381]
[1725266556882,22.9049,130.68,130.62,26.7938]
[1725266557084,15.2526,130.68,130.62,26.7933]
[1725266557270,15.2526,130.68,130.63,7.6551]
[1725266559091,7.653,130.67,130.62,26.7938]
[1725266559383,15.1617,130.61,130.55,19.1496]
[1725266559596,15.1617,130.61,130.49,41.34241293]
[1725266559763,15.1617,130.61,130.52,26.8157]
[1725266559764,7.6583,130.58,130.52,26.8157]
[1725266560484,7.6576,130.59,130.52,19.1541]
[1725266560663,22.8182,130.61,130.55,7.6598]
[1725266561379,7.6569,130.6,130.55,7.6598]
[1725266561759,22.8181,130.61,130.55,7.6598]
[1725266565055,22.8181,130.61,130.56,7.6592]
[1725266566578,15.1617,130.61,130.56,19.1471]
[1725266566758,15.1617,130.61,130.57,7.6587]
[1725266566964,15.1617,130.61,130.58,7.6581]
[1725266568674,15.1617,130.61,130.59,7.6575]
[1725266568877,15.1617,130.61,130.56,19.1471]
[1725266569085,15.1617,130.61,130.57,45.0]
[1725266570303,16.6216,130.65,130.58,19.144]
[1725266570463,16.6216,130.65,130.61,7.6563]
[1725266570670,24.2757,130.65,130.6,7.6569]
[1725266571774,7.6546,130.64,130.59,7.6573]
[1725266573095,16.6216,130.65,130.59,38.2872]
[1725266573400,7.6523,130.68,130.63,7.6547]
[1725266575085,15.249,130.69,130.64,19.1352]
[1725266575317,15.249,130.69,130.65,20.0]
[1725266575493,15.249,130.69,130.66,7.6529]
[1725266576199,22.9007,130.69,130.65,20.0]
[1725266576383,22.9007,130.69,130.64,26.7898]
[1725266576772,7.6529,130.67,130.62,7.6554]
[1725266576970,7.6529,130.67,130.63,20.0]
[1725266577676,7.6523,130.68,130.63,27.6551]
[1725266579207,22.9007,130.69,130.64,7.6544]
[1725266579579,7.6535,130.66,130.61,7.6563]
[1725266579778,7.6535,130.66,130.62,20.0]
[1725266580180,7.6534,130.66,130.62,20.0]
[1725266580379,7.6534,130.66,130.58,19.1451]
[1725266580380,7.6541,130.65,130.59,7.6575]
[1725266582483,7.6541,130.65,130.6,7.6569]
[1725266582787,15.249,130.69,130.6,7.6569]
[1725266582788,49.94621293,130.69,130.62,7.6552]
[1725266583395,49.94621293,130.69,130.63,7.6551]
[1725266583396,15.249,130.69,130.63,7.6551]
[1725266583599,22.9011,130.69,130.63,7.6551]
[1725266583777,22.9011,130.69,130.64,7.6543]
[1725266583987,15.249,130.69,130.64,7.6543]
[1725266584296,22.9007,130.69,130.64,7.6543]
[1725266584811,7.6523,130.68,130.63,7.6551]
[1725266590105,15.249,130.69,130.62,19.1383]
[1725266590408,15.249,130.69,130.67,7.6524]
[1725266591504,15.249,130.69,130.66,19.1324]
[1725266591505,15.4426,130.72,130.69,19.1292]
[1725266591714,15.4426,130.72,130.69,26.7808]
[1725266592190,15.4426,130.72,130.7,7.651]
[1725266593712,15.4426,130.72,130.71,7.6505]
[1725266593899,15.4426,130.72,130.69,19.1292]
[1725266597213,23.0927,130.72,130.67,7.6528]
[1725266597514,23.0926,130.72,130.67,7.6528]
[1725266599098,7.6505,130.71,130.66,7.6532]
[1725266600709,7.6505,130.71,130.67,7.6527]
[1725266601697,21.5794,130.68,130.62,19.1387]
[1725266601890,21.5794,130.68,130.62,26.7944]
[1725266602515,7.6533,130.67,130.62,26.7944]
[1725266604421,7.6534,130.66,130.62,26.7944]
[1725266604919,34.533776,130.67,130.59,19.1435]
[1725266605293,7.654,130.65,130.6,7.6568]
[1725266605692,7.6533,130.67,130.61,19.1398]
[1725266606119,7.6533,130.67,130.62,45.0]
[1725266607122,21.5794,130.68,130.61,19.1398]
[1725266607422,7.6542,130.65,130.61,19.1398]
[1725266607833,21.5794,130.68,130.58,19.1448]
[1725266607834,34.533776,130.67,130.58,19.1448]
[1725266608112,7.6556,130.63,130.58,26.8027]
[1725266608310,15.2202,130.61,130.58,19.1448]
[1725266610145,15.2202,130.61,130.58,26.8028]
[1725266610511,15.2202,130.61,130.59,7.6575]
[1725266611129,15.2202,130.61,130.58,19.1448]
[1725266611130,16.1766,130.64,130.6,7.6568]
[1725266611525,16.1766,130.64,130.6,19.1416]
[1725266611827,16.1766,130.64,130.61,20.0]
[1725266612406,16.1766,130.64,130.61,7.6563]
[1725266613645,16.1766,130.64,130.6,19.1416]
[1725266614016,15.5729,130.67,130.63,7.6552]
[1725266614227,15.5729,130.67,130.62,19.1386]
[1725266614228,15.5729,130.67,130.62,26.7942]
[1725266615041,23.2258,130.67,130.62,26.7942]
[1725266617130,15.5729,130.67,130.64,7.6541]
[1725266618532,6.5731,130.71,130.65,7.6538]
[1725266618533,16.1128,130.7,130.65,7.6538]
[1725266618750,23.764,130.7,130.65,7.6538]
[1725266619240,16.1128,130.7,130.66,7.6532]
[1725266621124,16.1128,130.7,130.67,45.0]
[1725266621421,23.8212,130.73,130.68,7.6522]
[1725266621742,23.8212,130.73,130.63,27.65014105]